bitfinex-derivatives/quotes_SOLF0:USTF0_20250820
["timestamp","ask_amount","ask_price","bid_price","bid_amount"]
[1755719407268,1.22009265,186.85,186.78,2.89]
[1755719407573,2.94,186.84,186.76,0.03449474]
[1755719407865,2.94,186.82,186.76,0.03449474]
[1755719408766,2.9890525,186.77,186.76,0.03449474]
[1755719408968,2.9890525,186.77,186.67,93.79196114]
[1755719409181,2.94,186.73,186.6,5.8790525]
[1755719409365,2.94,186.7,186.6,2.89]
[1755719410572,2.94,186.7,186.61,2.9890525]
[1755719411565,2.94,186.7,186.64,5.3574]
[1755719411865,135.42,186.76,186.6,2.89]
[1755719411866,2.94,186.66,186.6,2.89]
[1755719412168,0.03540945,186.67,186.6,2.89]
[1755719412569,0.03540945,186.67,186.62,5.3581]
[1755719412760,0.03540945,186.67,186.6,2.89]
[1755719412761,2.94,186.66,186.6,2.89]
[1755719412968,2.94,186.66,186.58,2.9890525]
[1755719413263,2.94,186.66,186.62,5.3579]
[1755719413460,2.94,186.65,186.57,2.9890525]
[1755719413662,2.94,186.66,186.6,5.3587]
[1755719413862,2.94,186.66,186.56,2.89]
[1755719414262,2.94,186.66,186.6,5.3587]
[1755719414470,0.03393073,186.63,186.6,5.3587]
[1755719414665,0.03393073,186.63,186.54,4.70391981]
[1755719414875,0.03393073,186.63,186.58,4.70391981]
[1755719415267,2.94,186.7,186.59,2.89]
[1755719415667,0.03467464,186.62,186.61,5.3584]
[1755719415864,2.94,186.7,186.6,2.89]
[1755719416265,2.94,186.7,186.58,4.70391981]
[1755719416266,0.0349681,186.63,186.58,4.70391981]
[1755719416465,0.0349681,186.63,186.59,2.89]
[1755719416661,2.94,186.7,186.59,2.89]
[1755719417077,2.94,186.7,186.64,5.3575]
[1755719417374,0.03558124,186.66,186.59,2.89]
[1755719417567,0.03558124,186.66,186.6,5.3585]
[1755719418273,0.03558124,186.66,186.59,2.89]
[1755719418871,0.03558124,186.66,186.58,4.70391981]
[1755719418872,0.03558124,186.66,186.65,8.2473]
[1755719419072,0.03558124,186.66,186.65,5.3573]
[1755719419374,0.03558124,186.66,186.65,8.2473]
[1755719421376,2.94,186.75,186.65,2.89]
[1755719421673,2.94,186.75,186.64,0.03659933]
[1755719421874,2.94,186.75,186.65,5.3573]
[1755719423375,2.94,186.75,186.64,5.3575]
[1755719423571,2.94,186.75,186.63,4.70391981]
[1755719423776,2.94,186.75,186.68,0.03462206]
[1755719427673,2.9,186.72,186.68,0.03462206]
[1755719427970,2.9,186.72,186.56,2.97]
[1755719428676,4.70391981,186.73,186.56,2.97]
[1755719428677,2.9,186.7,186.56,2.97]
[1755719428875,2.9,186.7,186.58,7.32379386]
[1755719429075,2.9,186.7,186.59,2.97]
[1755719429973,2.9,186.7,186.6,2.97]
[1755719430173,2.9,186.74,186.6,2.97]
[1755719430572,0.03401315,186.67,186.6,4.35379386]
[1755719430871,0.03401315,186.67,186.61,2.97]
[1755719432068,0.03401315,186.67,186.63,5.3576]
[1755719432278,0.03401315,186.67,186.63,8.3276]
[1755719432580,0.03401315,186.67,186.66,5.357]
[1755719432880,0.03401315,186.67,186.6,2.97]
[1755719434782,0.03401315,186.67,186.63,4.70391981]
[1755719434983,0.03401315,186.67,186.64,2.97]
[1755719435179,0.03401315,186.67,186.66,8.327]
[1755719435581,0.03401315,186.67,186.66,2.97]
[1755719435782,0.03401315,186.67,186.63,2.97]
[1755719435979,0.03401315,186.67,186.64,2.97]
[1755719436282,0.03401315,186.67,186.66,8.327]
[1755719436879,2.9,186.74,186.72,5.3551]
[1755719437285,2.9,186.74,186.66,2.97]
[1755719437778,2.9,186.74,186.7,5.3556]
[1755719437986,2.9,186.74,186.66,2.97]
[1755719438177,2.9,186.74,186.71,5.3554]
[1755719438991,2.9,186.8,186.71,5.3554]
[1755719439487,2.9,186.8,186.66,2.97]
[1755719439688,2.9,186.8,186.74,0.03628561]
[1755719444494,362.74,186.83,186.74,0.03628561]
[1755719444695,2.9,186.82,186.74,0.03628561]
[1755719445696,2.9,186.82,186.75,5.3543]
[1755719445997,2.9,186.82,186.74,0.03628561]
[1755719446198,2.9,186.82,186.74,5.39088561]
[1755719446701,2.9,186.82,186.75,5.3544]
[1755719449708,137.7,186.82,186.74,0.03628561]
[1755719450301,2.9,186.82,186.75,5.3542]
[1755719450603,137.68,186.82,186.74,0.03628561]
[1755719450904,137.68,186.82,186.77,8.3238]
[1755719451304,1.22009265,186.85,186.78,5.3535]
[1755719451507,136.00009265,186.85,186.79,2.97]
[1755719451805,135.98009265,186.85,186.79,2.97]
[1755719452008,135.98009265,186.85,186.8,0.03584975]
[1755719452206,135.98009265,186.85,186.81,2.97]
[1755719452508,135.98009265,186.85,186.8,0.03584975]
[1755719452711,1.22009265,186.85,186.83,2.97]
[1755719453309,2.9,186.84,186.8,0.03584975]
[1755719453604,1.22009265,186.85,186.8,0.03584975]
[1755719454102,2.9,186.84,186.8,0.03584975]
[1755719454407,2.9,186.83,186.8,0.03584975]
[1755719455610,1.22009265,186.85,186.8,0.03584975]
[1755719456009,1.22009265,186.85,186.82,2.98]
[1755719458713,1.22009265,186.85,186.8,0.03584975]
[1755719458914,1.22009265,186.85,186.84,2.98]
[1755719459116,1.22009265,186.85,186.84,8.3318]
[1755719460211,1.22009265,186.85,186.84,2.98]
[1755719460815,1.22009265,186.85,186.84,8.3318]
[1755719461210,362.75,186.93,186.87,5.3507]
[1755719461507,2.87,186.93,186.86,2.98]
[1755719461806,2.87,186.93,186.88,5.3505]
[1755719462115,2.87,186.93,186.88,8.3305]
[1755719462318,2.87,186.93,186.89,0.03397325]
[1755719463013,134.58,186.96,186.89,3.01397325]
[1755719463319,137.45,186.96,186.89,3.01397325]
[1755719463513,137.45,186.96,186.89,8.3303]
[1755719463711,134.58,186.96,186.91,0.0354869]
[1755719463913,2.87,186.95,186.91,0.0354869]
[1755719465419,134.58,186.98,186.91,0.0354869]
[1755719465619,2.87,186.97,186.91,0.0354869]
[1755719465823,2.98046386,186.96,186.91,0.0354869]
[1755719466208,2.87,186.92,186.91,0.0354869]
[1755719466515,2.87,186.94,186.91,0.0354869]
[1755719466918,2.87,186.93,186.91,0.0354869]
[1755719467113,2.87,186.92,186.91,0.0354869]
[1755719467918,2.87,186.93,186.91,0.0354869]
[1755719469022,2.87,186.92,186.91,0.0354869]
[1755719469820,5.85046386,186.95,186.91,0.0354869]
[1755719470219,2.87,186.95,186.91,3.0154869]
[1755719470424,134.5,186.97,186.91,0.0354869]
[1755719473129,137.27,186.98,186.91,0.0354869]
[1755719473624,2.87,186.98,186.91,0.0354869]
[1755719474230,134.4,187.0,186.92,8.3293]
[1755719475132,362.76046386,187.03,186.92,5.96046386]
[1755719475427,359.78,187.03,186.93,2.98]
[1755719475731,494.16,187.03,186.93,2.98]
[1755719475930,494.16,187.03,186.96,0.03630812]
[1755719476435,359.78,187.03,186.96,3.01630812]
[1755719476934,494.12,187.03,186.96,3.01630812]
[1755719477132,494.08,187.03,186.96,3.01630812]
[1755719479635,497.06046386,187.03,186.96,3.01630812]
[1755719480224,2.87,187.01,186.96,3.01630812]
[1755719480427,2.87,187.0,186.96,0.03630812]
[1755719481129,2.87,187.0,186.96,3.01630812]
[1755719482028,134.18,187.02,186.96,3.01630812]
[1755719482431,134.18,187.02,186.96,0.03630812]
[1755719482635,2.87,186.99,186.96,0.03630812]
[1755719483931,134.18,187.02,186.96,0.03630812]
[1755719484130,2.87,186.98,186.96,0.03630812]
[1755719484326,2.87,186.97,186.96,0.03630812]
[1755719484739,136.87,186.98,186.96,0.03630812]
[1755719485037,2.87,186.97,186.96,0.03630812]
[1755719485537,5.85046386,186.97,186.96,0.03630812]
[1755719485933,5.85046386,186.97,186.88,2.98]
[1755719486129,2.9,186.96,186.88,2.98]
[1755719487239,0.03379341,186.94,186.88,2.98]
[1755719487429,134.28,186.93,186.88,2.98]
[1755719487626,134.28,186.93,186.82,2.85]
[1755719487627,2.9,186.92,186.82,2.85]
[1755719488236,134.24,186.92,186.82,2.85]
[1755719488436,0.03702557,186.89,186.82,2.85]
[1755719488737,0.03702557,186.89,186.86,5.351]
[1755719488936,0.03702557,186.89,186.88,2.85]
[1755719489232,0.03702557,186.89,186.67,338.05036386]
[1755719489233,0.03702557,186.89,186.83,2.85]
[1755719489631,137.12,186.93,186.83,2.85]
[1755719489830,0.03542779,186.88,186.87,8.201]
[1755719490239,134.22,186.93,186.84,5.3516]
[1755719490434,2.98046386,186.91,186.82,2.85]
[1755719490636,0.03440969,186.89,186.82,2.85]
[1755719491035,2.98046386,186.88,186.82,2.85]
[1755719491235,137.14,186.87,186.76,5.83046386]
[1755719491439,140.12046386,186.87,186.78,5.3534]
[1755719492542,0.0375839,186.84,186.79,5.3532]
[1755719492742,0.0375839,186.84,186.76,2.98046386]
[1755719492941,0.0375839,186.84,186.82,5.3524]
[1755719493143,0.0375839,186.84,186.83,2.85]
[1755719494644,0.0375839,186.84,186.83,8.2021]
[1755719495246,2.9,186.91,186.83,2.85]
[1755719495641,5.88046386,186.96,186.83,2.85]
[1755719495948,5.88046386,186.96,186.84,2.85]
[1755719496445,5.88046386,186.96,186.88,0.03760265]
[1755719496845,2.9,186.96,186.91,5.3498]
[1755719497147,2.98046386,186.98,186.91,5.3498]
[1755719497148,2.9,186.97,186.91,5.3498]
[1755719497836,2.98046386,186.98,186.92,0.03413386]
[1755719499336,2.9,186.95,186.92,0.03413386]
[1755719500036,2.9,186.94,186.92,0.03413386]
[1755719502046,5.88046386,186.98,186.92,0.03413386]
[1755719502246,5.88046386,186.98,186.92,2.88413386]
[1755719502950,5.88046386,186.98,186.92,0.03413386]
[1755719511552,2.98046386,186.98,186.92,0.03413386]
[1755719511754,2.9,186.96,186.92,0.03413386]
[1755719512056,2.9,186.97,186.92,0.03413386]
[1755719512356,2.9,186.95,186.92,0.03413386]
[1755719513252,2.98046386,186.98,186.92,0.03413386]
[1755719513561,2.9,186.93,186.92,0.03413386]
[1755719513852,137.06,186.93,186.83,4.35680754]
[1755719514057,137.16046386,186.92,186.83,2.85]
[1755719514454,137.16046386,186.92,186.87,5.3509]
[1755719514654,137.16046386,186.92,186.88,2.85]
[1755719514958,140.06046386,186.92,186.88,2.85]
[1755719515152,134.14,186.94,186.85,2.85]
[1755719515357,134.14,186.94,186.85,7.20680754]
[1755719515654,134.14,186.94,186.86,2.85]
[1755719515958,137.15,186.94,186.86,2.85]
[1755719516158,137.15,186.94,186.88,5.3507]
[1755719516453,0.03422103,186.92,186.88,8.1607]
[1755719516750,0.03422103,186.92,186.9,5.3499]
[1755719516956,0.03422103,186.92,186.86,2.81]
[1755719517358,3.04422103,186.92,186.88,5.3506]
[1755719517551,0.03422103,186.92,186.85,7.16680754]
[1755719517751,0.03422103,186.92,186.87,5.351]
[1755719518047,3.04422103,186.92,186.87,5.351]
[1755719518254,3.04422103,186.92,186.88,2.81]
[1755719519058,0.03422103,186.92,186.88,2.81]
[1755719519358,3.04422103,186.92,186.88,2.81]
[1755719520160,3.01,186.91,186.88,2.81]
[1755719520957,5.99046386,186.91,186.83,4.35680754]
[1755719521162,3.01,186.87,186.79,4.35680754]
[1755719521661,3.01,186.87,186.8,2.81]
[1755719521862,3.01,186.87,186.81,5.3525]
[1755719522062,3.01,186.87,186.8,2.81]
[1755719523964,3.01,186.87,186.81,5.3526]
[1755719524163,3.01,186.87,186.8,2.81]
[1755719524359,2.98046386,186.85,186.8,2.81]
[1755719524559,5.99046386,186.85,186.8,2.81]
[1755719524963,3.01,186.97,186.79,7.3372714]
[1755719525158,3.01,186.94,186.82,5.79046386]
[1755719525364,3.01,186.94,186.83,2.81]
[1755719525861,134.1,186.93,186.83,2.81]
[1755719526363,134.1,186.93,186.86,0.03490043]
[1755719526560,3.01,186.94,186.86,2.84490043]
[1755719526760,137.07,186.94,186.86,2.84490043]
[1755719526963,137.07,186.94,186.87,5.3507]
[1755719527462,3.01,186.94,186.87,5.3507]
[1755719527664,137.07,186.94,186.87,5.3507]
[1755719528465,3.01,186.94,186.87,5.3507]
[1755719528764,137.03,186.94,186.87,5.3507]
[1755719529954,137.03,186.94,186.88,5.3507]
[1755719530467,3.01,186.94,186.89,5.3501]
[1755719530660,3.01,186.94,186.9,2.81]
[1755719531067,136.96046386,186.95,186.88,5.3506]
[1755719531266,3.01,186.94,186.88,5.3506]
[1755719531568,3.01,186.93,186.9,0.03978394]
[1755719533270,3.01,186.92,186.9,0.03978394]
[1755719534968,136.84046386,186.95,186.9,0.03978394]
[1755719535170,3.01,186.94,186.9,0.03978394]
[1755719535369,3.01,186.93,186.9,0.03978394]
[1755719535570,136.84046386,186.95,186.9,0.03978394]
[1755719536071,3.01,186.92,186.9,0.03978394]
[1755719537364,136.84046386,186.95,186.9,0.03978394]
[1755719537570,3.01,186.93,186.9,2.84978394]
[1755719537768,3.01,186.93,186.9,0.03978394]
[1755719538269,3.01,186.92,186.9,0.03978394]
[1755719540474,3.01,186.94,186.9,0.03978394]
[1755719540676,3.01,186.93,186.9,0.03978394]
[1755719543370,3.01,186.95,186.9,0.03978394]
[1755719543672,133.84,186.98,186.92,2.81]
[1755719543871,133.84,186.98,186.92,8.1594]
[1755719544074,133.84,186.98,186.92,2.81]
[1755719544475,133.84,186.98,186.93,0.035679]
[1755719544666,136.85,186.99,186.93,0.035679]
[1755719544871,3.01,186.99,186.93,0.035679]
[1755719545172,133.84,187.01,186.94,2.81]
[1755719547068,136.82046386,187.01,186.94,2.81]
[1755719547773,133.84,187.0,186.94,2.81]
[1755719549573,133.84,187.0,186.93,0.035679]
[1755719549574,2.86,186.97,186.93,0.035679]
[1755719550078,2.86,186.94,186.93,0.035679]
[1755719550382,136.68,186.94,186.93,0.035679]
[1755719551376,136.68,186.94,186.86,2.97]
[1755719552066,2.86,186.94,186.86,2.97]
[1755719552277,139.66046386,186.94,186.88,5.3505]
[1755719552472,139.66046386,186.94,186.86,2.97]
[1755719552875,5.84046386,186.94,186.87,5.3509]
[1755719553075,133.84,186.93,186.87,5.3509]
[1755719553882,133.84,186.93,186.88,5.3507]
[1755719554181,136.7,186.93,186.89,2.97]
[1755719554478,136.7,186.93,186.9,2.97]
[1755719554675,2.86,186.93,186.9,2.97]
[1755719555075,2.98046386,186.95,186.87,2.97]
[1755719555276,133.82,186.95,186.88,2.97]
[1755719555484,133.82,186.95,186.91,5.3498]
[1755719555674,136.68,186.95,186.91,8.3198]
[1755719555874,2.86,186.94,186.86,2.97]
[1755719556081,136.7,186.94,186.86,2.97]
[1755719556276,136.7,186.94,186.86,4.34627955]
[1755719556476,2.98046386,186.97,186.82,2.98046386]
[1755719556477,133.84,186.95,186.88,2.97]
[1755719557077,133.84,186.95,186.87,4.34627955]
[1755719557078,136.7,186.95,186.92,2.97]
[1755719558678,136.7,186.95,186.92,8.3195]
[1755719558977,136.7,186.95,186.87,4.34627955]
[1755719558978,2.86,186.94,186.9,2.97]
[1755719560282,2.86,186.94,186.91,2.97]
[1755719561379,2.86,186.96,186.92,2.97]
[1755719561581,2.86,186.96,186.88,2.97]
[1755719562185,2.86,186.96,186.92,8.3195]
[1755719562685,2.86,186.96,186.92,2.97]
[1755719563387,2.86,186.95,186.92,2.97]
[1755719563589,2.86,186.96,186.93,2.97]
[1755719563878,2.98046386,186.98,186.93,5.3491]
[1755719564080,136.80046386,186.98,186.88,7.32102408]
[1755719564283,133.82,186.98,186.89,2.97]
[1755719564484,133.82,186.98,186.94,5.349]
[1755719564680,136.68,186.98,186.94,8.319]
[1755719565085,136.68,186.98,186.94,5.349]
[1755719565487,136.68,186.98,186.94,8.319]
[1755719565985,136.68,186.98,186.94,2.97]
[1755719566288,5.84046386,187.01,186.94,2.97]
[1755719566488,2.98046386,187.01,186.93,2.97]
[1755719566689,2.86,187.0,186.93,2.97]
[1755719566886,136.68,187.0,186.96,2.97]
[1755719567889,136.68,187.0,186.96,8.3183]
[1755719568288,359.78,187.03,186.92,2.97]
[1755719568491,133.8,187.02,186.92,2.97]
[1755719568686,133.8,187.02,186.92,4.34912955]
[1755719568889,136.66,187.02,186.97,8.3179]
[1755719569084,2.86,187.01,186.97,8.3179]
[1755719569285,2.86,187.0,186.97,2.97]
[1755719570593,2.86,187.0,186.97,8.3181]
[1755719570793,136.66,187.02,186.98,2.97]
[1755719570990,133.8,187.02,186.98,2.97]
[1755719571191,2.86,187.01,186.98,2.97]
[1755719571386,2.86,187.01,186.92,4.34912955]
[1755719571694,2.86,187.01,186.95,2.97]
[1755719571895,2.86,187.01,186.96,5.3484]
[1755719572094,2.86,187.01,186.97,2.97]
[1755719574002,2.86,187.01,186.97,8.3181]
[1755719576802,2.86,187.01,186.98,2.92]
[1755719579305,133.76,187.0,186.98,2.92]
[1755719579704,136.64,187.0,186.93,2.92]
[1755719580307,2.88,186.99,186.96,2.92]
[1755719580504,136.64,187.0,186.96,2.92]
[1755719581708,2.88,186.99,186.96,2.92]
[1755719581912,2.88,186.99,186.96,8.2684]
[1755719582408,136.64,186.99,186.96,8.2684]
[1755719582601,2.88,186.98,186.9,4.34912955]
[1755719582798,133.74,186.97,186.9,2.92]
[1755719582998,2.88,186.98,186.9,2.92]
[1755719583298,2.88,186.96,186.93,5.3491]
[1755719583498,2.88,186.96,186.89,2.92]
[1755719583702,133.74,186.95,186.89,2.92]
[1755719584307,133.74,186.95,186.89,8.2704]
[1755719584507,2.88,186.96,186.89,2.92]
[1755719584715,2.88,186.96,186.9,5.3499]
[1755719584912,2.88,186.95,186.87,4.34912955]
[1755719585212,133.74,186.95,186.89,2.92]
[1755719585407,2.88,186.99,186.92,2.92]
[1755719585609,133.74,186.96,186.93,2.92]
[1755719585807,133.74,186.96,186.94,2.92]
[1755719586011,2.88,186.98,186.94,2.92]
[1755719586311,133.74,186.97,186.94,2.92]
[1755719586804,133.74,186.97,186.95,2.92]
[1755719587212,133.74,186.99,186.91,7.32959341]
[1755719587508,133.74,186.99,186.92,2.92]
[1755719587908,133.74,186.99,186.94,5.3488]
[1755719588111,136.62,186.99,186.95,2.92]
[1755719588513,136.62,186.99,186.96,2.92]
[1755719589514,362.66,187.03,186.96,2.92]
[1755719589711,133.74,187.02,186.96,2.92]
[1755719590111,2.88,187.01,186.96,2.92]
[1755719590314,2.88,187.0,186.96,2.92]
[1755719590815,133.74,187.02,186.92,2.92]
[1755719591014,133.74,187.02,186.95,5.3487]
[1755719591220,2.88,187.01,186.95,5.3487]
[1755719591816,133.74,187.0,186.95,5.3487]
[1755719592017,2.88,186.99,186.95,5.3487]
[1755719592312,2.88,186.99,186.95,8.2687]
[1755719593116,133.74,187.0,186.93,2.92]
[1755719595009,133.74,187.0,186.97,5.3481]
[1755719595215,133.74,187.0,186.97,8.2681]
[1755719595416,133.74,187.0,186.98,2.92]
[1755719595613,133.74,187.0,186.97,5.3481]
[1755719595809,2.88,186.99,186.93,2.92]
[1755719596315,2.88,186.99,186.96,5.3484]
[1755719596916,2.88,186.99,186.93,2.92]
[1755719597617,133.74,187.0,186.93,2.92]
[1755719597818,133.74,187.0,186.93,7.26912955]
[1755719598011,133.74,187.0,186.94,4.34912955]
[1755719598316,133.72,187.0,186.97,8.2679]
[1755719598916,136.6,187.0,186.97,8.2679]
[1755719601123,136.6,187.0,186.97,5.3479]
[1755719602318,2.88,187.0,186.97,5.3479]
[1755719602719,133.72,187.01,186.96,5.3483]
[1755719602921,2.88,187.0,186.96,5.3483]
[1755719603213,133.72,187.01,186.96,5.3483]
[1755719603412,2.88,186.98,186.94,2.92]
[1755719603617,2.88,186.98,186.95,2.92]
[1755719603818,133.7,187.02,186.94,2.92]
[1755719604118,133.7,187.02,186.94,7.26912955]
[1755719604617,133.7,187.02,186.95,2.92]
[1755719604923,133.7,187.02,186.97,5.3479]
[1755719605125,2.88,187.01,186.98,2.92]
[1755719605325,136.58,187.02,186.95,2.92]
[1755719605824,136.58,187.02,186.95,7.26912955]
[1755719606125,2.98,187.01,186.97,5.3481]
[1755719606619,133.7,187.02,186.95,7.26912955]
[1755719606823,2.98,187.0,186.95,7.37912955]
[1755719607020,2.98,187.0,186.95,4.34912955]
[1755719607320,2.98,187.0,186.97,3.03]
[1755719607923,2.98,186.99,186.97,5.3479]
[1755719608524,2.98,187.01,186.97,5.3479]
[1755719608718,2.98,187.0,186.97,5.3479]
[1755719609428,2.98,187.0,186.98,5.3478]
[1755719609817,2.98,187.0,186.97,5.3479]
[1755719610222,2.98,187.0,186.97,3.03]
[1755719610625,2.98,187.0,186.98,5.3477]
[1755719610927,133.7,187.02,186.96,4.34912955]
[1755719611130,2.98,187.01,186.98,8.3776]
[1755719611323,2.98,187.01,186.98,3.03]
[1755719611727,2.98,187.0,186.96,4.34912955]
[1755719611928,2.98,187.0,186.98,5.3476]
[1755719613324,2.98046386,187.06,186.98,5.3476]
[1755719613533,136.66,187.05,186.99,5.3475]
[1755719613730,2.98046386,187.08,186.98,3.03]
[1755719613932,2.98,187.06,186.98,3.03]
[1755719614321,0.03923568,187.05,186.98,3.03]
[1755719614525,2.98,187.04,186.98,3.03]
[1755719615730,2.98,187.02,187.0,5.3471]
[1755719620333,2.98,187.04,187.0,5.3471]
[1755719620532,2.98,187.03,187.0,5.3471]
[1755719620735,2.98,187.02,187.0,5.3471]
[1755719621132,1.94179612,187.05,186.99,5.3475]
[1755719621333,1.90256044,187.01,186.95,7.38552674]
[1755719621529,4.88256044,187.01,186.96,4.35552674]
[1755719621728,2.98,186.99,186.97,5.3479]
[1755719621936,2.98,187.0,186.95,4.35552674]
[1755719622234,1.90256044,186.97,186.92,9.70482674]
[1755719622430,2.98,186.94,186.92,5.3493]
[1755719622623,1.90256044,186.97,186.91,4.35552674]
[1755719622827,133.69696366,187.0,186.92,6.25808718]
[1755719622828,1.90256044,187.0,186.92,6.25808718]
[1755719623026,2.98,187.01,186.95,3.03]
[1755719623230,2.98,187.01,186.98,5.3476]
[1755719623930,2.98,187.0,186.98,5.3476]
[1755719624133,0.03711545,187.01,186.98,1.90256044]
[1755719624330,0.03711545,187.01,187.0,3.03]
[1755719624531,0.03711545,187.01,187.0,10.27986044]
[1755719626437,0.03711545,187.01,187.0,8.3773]
[1755719635239,0.03711545,187.01,187.0,11.34969802]
[1755719635446,2.98,187.08,187.04,5.3461]
[1755719635647,2.98,187.07,187.04,5.3461]
[1755719636143,362.35,187.1,187.01,2.96]
[1755719636340,2.93,187.09,187.01,7.31666433]
[1755719636548,2.93,187.09,187.05,5.3456]
[1755719636750,2.93,187.08,187.05,5.3456]
[1755719636940,359.42,187.1,187.05,0.03944894]
[1755719637244,2.93,187.08,187.06,5.3455]
[1755719637640,359.42,187.1,187.05,0.03944894]
[1755719637844,2.93,187.07,187.05,0.03944894]
[1755719638549,2.93,187.06,187.05,5.38524894]
[1755719639550,2.93,187.09,187.06,5.3455]
[1755719639850,359.42,187.1,187.05,0.03944894]
[1755719640047,2.93,187.07,187.05,0.03944894]
[1755719641149,2.93,187.07,187.05,5.38504894]
[1755719641549,2.93,187.07,187.05,0.03944894]
[1755719641744,2.93,187.07,187.06,5.3455]
[1755719642845,2.93,187.09,187.06,5.3455]
[1755719643046,359.42,187.1,187.06,5.3455]
[1755719643348,2.93,187.07,187.05,0.03944894]
[1755719643650,2.93,187.06,187.05,0.03944894]
[1755719644749,2.93,187.09,187.05,0.03944894]
[1755719644949,359.42,187.1,187.05,0.03944894]
[1755719645150,2.93,187.07,187.05,0.03944894]
[1755719647855,2.93,187.11,187.05,0.03944894]
[1755719648455,2.93,187.08,187.05,0.03944894]
[1755719648655,2.93,187.06,187.05,0.03944894]
[1755719649053,1.90160324,187.09,187.05,0.03944894]
[1755719649350,1.90160324,187.07,187.05,0.03944894]
[1755719649555,2.93,187.06,187.05,0.03944894]
[1755719649758,136.49,187.06,187.05,0.03944894]
[1755719650255,0.93063058,187.13,187.05,0.03944894]
[1755719650452,2.93,187.07,187.05,0.03944894]
[1755719651054,2.93,187.06,187.05,0.03944894]
[1755719651257,136.49,187.06,187.05,0.03944894]
[1755719651456,2.97144065,187.12,187.05,0.03944894]
[1755719651763,2.93,187.08,187.05,0.03944894]
[1755719652058,136.49,187.08,187.05,0.03944894]
[1755719652455,133.56,187.08,187.05,0.03944894]
[1755719652661,2.93,187.07,187.05,0.03944894]
[1755719654962,2.93,187.08,187.05,0.03944894]
[1755719655156,133.54,187.09,187.05,0.03944894]
[1755719655557,2.93,187.08,187.05,0.03944894]
[1755719655962,5.90144065,187.06,187.05,0.03944894]
[1755719656265,136.47,187.06,187.05,0.03944894]
[1755719656861,2.97144065,187.1,187.05,2.99944894]
[1755719657167,2.93,187.07,187.05,0.03944894]
[1755719657965,136.51144065,187.1,187.05,0.03944894]
[1755719658358,2.93,187.06,187.05,0.03944894]
[1755719659564,2.93,187.09,187.05,0.03944894]
[1755719659764,2.93,187.08,187.05,0.03944894]
[1755719659961,2.97144065,187.13,187.06,2.96]
[1755719660166,2.93,187.09,187.06,2.96]
[1755719660359,133.54,187.11,187.01,2.97144065]
[1755719660566,2.93,187.1,187.01,2.96]
[1755719660864,2.93,187.1,187.06,0.03401323]
[1755719662164,2.93,187.07,187.06,0.03401323]
[1755719663463,3.47,187.07,187.06,0.03401323]
[1755719663768,3.47,187.07,186.99,2.96]
[1755719663972,2.93,187.07,186.99,2.96]
[1755719665059,136.47,187.07,186.99,2.96]
[1755719665561,136.47,187.07,187.02,2.96]
[1755719665766,136.47,187.07,187.03,2.92]
[1755719666063,16.05,187.15,187.02,5.3467]